fUST/lending_fUST_20250925
["ID","MTS","AMOUNT","RATE_DAILY","PERIOD"]
[387468348,1758737439551,-480.0,0.00019178,2]
[387468349,1758737439562,-480.0,0.00019178,2]
[387468350,1758737439573,-480.0,0.00019178,2]
[387468351,1758737439582,-480.0,0.00019178,2]
[387468352,1758737439591,-401.347651,0.00019178,2]
[387468353,1758737439601,-480.0,0.00019178,2]
[387468354,1758737439610,-480.0,0.00019178,2]
[387468355,1758737439619,-480.0,0.00019178,2]
[387468356,1758737439629,-480.0,0.00019178,2]
[387468357,1758737439638,-603.26,0.00019178,2]
[387468358,1758737439648,-480.0,0.00019178,2]
[387468359,1758737439658,-480.0,0.00019178,2]
[387468360,1758737439668,-481.89032921,0.00019178,2]
[387468361,1758737439678,-481.1275532,0.00019178,2]
[387468362,1758737439688,-480.0,0.00019178,2]
[387468363,1758737439697,-480.0,0.00019178,2]
[387468364,1758737439707,-480.0,0.00019178,2]
[387468365,1758737439716,-480.0,0.00019178,2]
[387468366,1758737439726,-480.0,0.00019178,2]
[387468367,1758737439736,-480.0,0.00019178,2]
[387468368,1758737439745,-480.0,0.00019178,2]
[387468369,1758737439754,-480.0,0.00019178,2]
[387468370,1758737439764,-480.0,0.00019178,2]
[387468371,1758737439773,-480.0,0.00019178,2]
[387468372,1758737439783,-480.0,0.00019178,2]
[387468373,1758737439793,-480.0,0.00019178,2]
[387468374,1758737439802,-480.0,0.00019178,2]
[387468375,1758737439812,-480.0,0.00019178,2]
[387468376,1758737439821,-480.0,0.00019178,2]
[387468377,1758737439831,-480.0,0.00019178,2]
[387468378,1758737439840,-480.0,0.00019178,2]
[387468379,1758737439850,-480.0,0.00019178,2]
[387468380,1758737439859,-480.0,0.00019178,2]
[387468381,1758737439868,-480.0,0.00019178,2]
[387468382,1758737439878,-500.0,0.00019178,2]
[387468383,1758737439982,-500.0,0.00019178,2]
[387468384,1758737439992,-480.0,0.00019178,2]
[387468385,1758737440001,-480.0,0.00019178,2]
[387468386,1758737440011,-480.0,0.00019178,2]
[387468387,1758737440020,-588.01528345,0.00019178,2]
[387468388,1758737440029,-480.0,0.00019178,2]
[387468389,1758737440039,-480.0,0.00019178,2]
[387468390,1758737440048,-480.0,0.00019178,2]
[387468391,1758737440058,-480.0,0.00019178,2]
[387468392,1758737440067,-480.0,0.00019178,2]
[387468393,1758737440076,-480.0,0.00019178,2]
[387468394,1758737440085,-480.92458515,0.00019178,2]
[387468395,1758737440095,-480.0,0.00019178,2]
[387468396,1758737440104,-480.0,0.00019178,2]
[387468397,1758737440113,-480.0,0.00019178,2]
[387468398,1758737440123,-480.0,0.00019178,2]
[387468399,1758737440132,-480.0,0.00019178,2]
[387468400,1758737440141,-480.0,0.00019178,2]
[387468401,1758737440151,-486.27327992,0.00019178,2]
[387468402,1758737440161,-227.85052026,0.00019178,2]
[387468403,1758737440172,-480.0,0.00019178,2]
[387468404,1758737440182,-480.0,0.00019178,2]
[387468405,1758737440192,-500.0,0.00019178,3]
[387468406,1758737440205,-50000.0,0.00019178,2]
[387468407,1758737440214,-500.0,0.000192,2]
[387468408,1758737440224,-1664.5913467,0.00019202,2]
[387468409,1758737440233,-680.85832473,0.0001925,2]
[387468410,1758737440243,-588.76,0.00019337,3]
[387468411,1758737440253,-785.0,0.00019338,3]
[387468412,1758737440263,-392.5,0.00019338,3]
[387468413,1758737440272,-196.25,0.00019338,3]
[387468414,1758737440282,-480.0,0.00019348,2]
[387468415,1758737440293,-485.08283395,0.00019348,2]
[387468416,1758737440303,-480.0,0.00019348,2]
[387468418,1758737440312,-291.69759083,0.00019348,2]
[387468420,1758737440322,-480.0,0.00019348,2]
[387468422,1758737440332,-480.0,0.00019348,2]
[387468424,1758737440341,-480.0,0.00019348,2]
[387468426,1758737440351,-480.0,0.00019348,2]
[387468428,1758737440360,-480.0,0.00019348,2]
[387468430,1758737440369,-480.0,0.00019348,2]
[387468432,1758737440379,-480.0,0.00019348,2]
[387468434,1758737440388,-480.0,0.00019348,2]
[387468436,1758737440398,-281.32815379,0.00019348,2]
[387468438,1758737440407,-480.0,0.00019348,2]
[387468440,1758737440417,-480.0,0.00019348,2]
[387468442,1758737440426,-480.0,0.00019348,2]
[387468445,1758737440436,-483.86520322,0.00019348,2]
[387468447,1758737440445,-252.98244034,0.00019348,2]
[387468449,1758737440455,-482.59736058,0.00019348,2]
[387468451,1758737440464,-480.0,0.00019348,2]
[387468453,1758737440473,-480.0,0.00019348,2]
[387468455,1758737440483,-480.0,0.00019348,2]
[387468457,1758737440493,-480.0,0.00019348,2]
[387468459,1758737440501,-480.0,0.00019348,2]
[387468461,1758737440510,-480.0,0.00019348,2]
[387468463,1758737440520,-480.0,0.00019348,2]
[387468465,1758737440529,-480.0,0.00019348,2]
[387468467,1758737440540,-480.0,0.00019348,2]
[387468469,1758737440549,-480.0,0.00019348,2]
[387468471,1758737440559,-480.0,0.00019348,2]
[387468473,1758737440568,-480.0,0.00019348,2]
[387468475,1758737440577,-480.0,0.00019348,2]
[387468477,1758737440586,-480.0,0.00019348,2]
[387468479,1758737440595,-481.24857996,0.00019348,2]
[387468481,1758737440604,-488.75272952,0.00019348,2]
[387468483,1758737440614,-480.0,0.00019348,2]
[387468485,1758737440624,-480.0,0.00019348,2]
[387468487,1758737440633,-480.0,0.00019348,2]
[387468489,1758737440643,-480.0,0.00019348,2]
[387468491,1758737440652,-480.0,0.00019348,2]
[387468493,1758737440661,-320.89465237,0.00019348,2]
[387468495,1758737440670,-500.0,0.00019348,2]
[387468497,1758737440679,-480.0,0.00019348,2]
[387468499,1758737440689,-480.0,0.00019348,2]
[387468501,1758737440698,-480.0,0.00019348,2]
[387468503,1758737440707,-480.0,0.00019348,2]
[387468505,1758737440716,-480.0,0.00019348,2]
[387468507,1758737440725,-480.0,0.00019348,2]
[387468509,1758737440735,-480.0,0.00019348,2]
[387468510,1758737440745,-480.0,0.00019348,2]
[387468512,1758737440755,-481.34763429,0.00019348,2]
[387468515,1758737440764,-480.0,0.00019348,2]
[387468517,1758737440774,-480.0,0.00019348,2]
[387468519,1758737440783,-480.0,0.00019348,2]
[387468520,1758737440793,-480.0,0.00019348,2]
[387468523,1758737440802,-480.75236427,0.00019348,2]
[387468525,1758737440812,-480.0,0.00019348,2]
[387468527,1758737440822,-469.02563793,0.00019348,2]
[387468529,1758737440831,-480.0,0.00019348,2]
[387468531,1758737440840,-480.0,0.00019348,2]
[387468533,1758737440849,-157.5154215,0.00019348,2]
[387468535,1758737440858,-481.30324616,0.00019348,2]
[387468537,1758737440867,-480.0,0.00019348,2]
[387468539,1758737440877,-480.0,0.00019348,2]
[387468541,1758737440886,-480.0,0.00019348,2]
[387468543,1758737440895,-480.0,0.00019349,2]
[387468545,1758737440904,-480.0,0.00019349,2]
[387468547,1758737440915,-480.0,0.00019349,2]
[387468549,1758737440925,-480.0,0.00019349,2]
[387468551,1758737440933,-480.0,0.00019349,2]
[387468553,1758737440943,-500.0,0.00019349,2]
[387468555,1758737440952,-501.52246738,0.0001935,2]
[387468557,1758737440961,-480.0,0.0001935,2]
[387468559,1758737440971,-1000.0,0.0001935,2]
[387468561,1758737440980,-1086.60817063,0.0001935,2]
[387468563,1758737440989,-500.0,0.0001935,2]
[387468565,1758737440999,-500.0,0.0001935,2]
[387468567,1758737441008,-500.0,0.0001935,2]
[387468569,1758737441017,-500.0,0.0001935,2]
[387468571,1758737441026,-500.0,0.0001935,2]
[387468573,1758737441035,-500.0,0.0001935,2]
[387468575,1758737441044,-480.0,0.0001935,2]
[387468577,1758737441053,-480.0,0.0001935,2]
[387468579,1758737441063,-480.0,0.0001935,2]
[387468580,1758737441072,-480.0,0.0001935,2]
[387468581,1758737441081,-480.0,0.0001935,2]
[387468582,1758737441089,-480.0,0.0001935,2]
[387468583,1758737441098,-500.0,0.0001935,2]
[387468584,1758737441107,-500.0,0.0001935,2]
[387468585,1758737441117,-500.0,0.00019351,2]
[387468586,1758737441126,-500.0,0.00019351,2]
[387468587,1758737441135,-500.0,0.00019351,2]
[387468588,1758737441144,-500.0,0.00019351,2]
[387468589,1758737441152,-500.0,0.00019351,2]
[387468590,1758737441161,-500.0,0.00019351,2]
[387468591,1758737441170,-500.0,0.00019351,2]
[387468592,1758737441179,-500.0,0.00019351,2]
[387468593,1758737441188,-500.0,0.00019351,2]
[387468594,1758737441199,-500.0,0.00019351,2]
[387468595,1758737441210,-500.0,0.00019351,2]
[387468596,1758737441219,-500.0,0.00019351,2]
[387468597,1758737441228,-500.0,0.00019351,2]
[387468598,1758737441238,-500.0,0.00019351,2]
[387468599,1758737441248,-500.0,0.00019351,2]
[387468600,1758737441257,-500.0,0.00019351,2]
[387468601,1758737441265,-500.0,0.00019351,2]
[387468602,1758737441274,-500.0,0.00019351,2]
[387468603,1758737441283,-500.0,0.00019351,2]
[387468604,1758737441293,-208.64480234,0.00019351,2]
[387468605,1758737441302,-174.26,0.00019351,2]
[387468606,1758737441312,-500.0,0.00019351,2]
[387468607,1758737441320,-500.0,0.00019351,2]
[387468608,1758737441330,-500.0,0.00019351,2]
[387468609,1758737441338,-500.0,0.00019351,2]
[387468610,1758737441347,-500.0,0.00019351,2]
[387468611,1758737441356,-500.0,0.00019351,2]
[387468612,1758737441365,-500.0,0.00019351,2]
[387468614,1758737441374,-500.0,0.00019351,2]
[387468616,1758737441383,-500.0,0.00019351,2]
[387468618,1758737441392,-500.0,0.00019351,2]
[387468620,1758737441401,-500.0,0.00019351,2]
[387468622,1758737441410,-500.0,0.00019351,2]
[387468624,1758737441420,-500.0,0.00019351,2]
[387468626,1758737441429,-500.0,0.00019351,2]
[387468628,1758737441438,-500.0,0.00019351,2]
[387468630,1758737441447,-500.0,0.00019351,2]
[387468632,1758737441456,-500.0,0.00019351,2]
[387468634,1758737441465,-500.0,0.00019351,2]
[387468636,1758737441474,-500.0,0.00019351,2]
[387468638,1758737441484,-534.67017089,0.00019351,2]
[387468640,1758737441493,-167.55395276,0.00019351,2]
[387468642,1758737441502,-370000.0,0.00019352,2]
[387468644,1758737441511,-330.8056317,0.00019373,2]
[387468646,1758737441521,-514.68386253,0.00019373,2]
[387468648,1758737441530,-500.0,0.00019373,2]
[387468650,1758737441540,-500.0,0.00019373,2]
[387468652,1758737441550,-480.0,0.00019452,2]
[387468654,1758737441559,-480.0,0.00019452,2]
[387468656,1758737441568,-480.0,0.00019452,2]
[387468658,1758737441577,-480.0,0.00019452,2]
[387468659,1758737441586,-491.42670829,0.00019452,2]
[387468662,1758737441596,-260.23,0.00019452,2]
[387468663,1758737441606,-480.0,0.00019452,2]
[387468665,1758737441615,-480.0,0.00019452,2]
[387468667,1758737441624,-480.0,0.00019452,2]
[387468669,1758737441633,-480.0,0.00019452,2]
[387468671,1758737441642,-480.0,0.00019452,2]
[387468673,1758737441652,-391.42073882,0.00019452,2]
[387468675,1758737441661,-480.0,0.00019452,2]
[387468677,1758737441670,-200.03261799,0.00019452,2]
[387468679,1758737441679,-480.0,0.00019452,2]
[387468681,1758737441688,-482.18892815,0.00019452,2]
[387468683,1758737441697,-480.0,0.00019452,2]
[387468685,1758737441707,-480.0,0.00019452,2]
[387468687,1758737441716,-486.02115282,0.00019452,2]
[387468689,1758737441726,-480.0,0.00019452,2]
[387468691,1758737441735,-429.71,0.00019452,2]
[387468693,1758737441745,-480.0,0.00019452,2]
[387468695,1758737441755,-480.0,0.00019452,2]
[387468697,1758737441764,-480.0,0.00019452,2]
[387468699,1758737441773,-480.0,0.00019452,2]
[387468701,1758737441782,-480.0,0.00019452,2]
[387468703,1758737441791,-583.41,0.00019452,2]
[387468706,1758737441801,-459.03,0.00019452,2]
[387468707,1758737441810,-480.0,0.00019452,2]
[387468710,1758737441819,-262.46,0.00019452,2]
[387468711,1758737441829,-597.28,0.00019452,2]
[387468713,1758737441838,-373.44,0.00019452,2]
[387468716,1758737441847,-480.0,0.00019452,2]
[387468718,1758737441856,-452.31096039,0.00019452,2]
[387468720,1758737441866,-480.0,0.00019452,2]
[387468722,1758737441875,-232.3399632,0.00019452,2]
[387468724,1758737441884,-480.0,0.00019452,2]
[387468726,1758737441894,-480.0,0.00019452,2]
[387468728,1758737441903,-480.0,0.00019452,2]
[387468730,1758737441912,-480.0,0.00019452,2]
[387468732,1758737441921,-480.0,0.00019452,2]
[387468734,1758737441930,-331.16983905,0.00019452,2]
[387468736,1758737441939,-480.0,0.00019452,2]
[387468738,1758737441948,-498.35,0.00019452,2]
[387468740,1758737441957,-467.46242403,0.00019452,2]
[387468742,1758737441966,-480.0,0.00019452,2]
[387468744,1758737441975,-480.0,0.00019452,2]
[387468746,1758737441984,-500.0,0.00019452,3]
[387468748,1758737441993,-480.0,0.00019622,2]
[387468750,1758737442002,-480.0,0.00019622,2]
[387468752,1758737442012,-297.36297396,0.00019622,2]
[387468754,1758737442021,-480.0,0.00019622,2]
[387468756,1758737442030,-480.0,0.00019622,2]
[387468758,1758737442040,-205.48969776,0.00019622,2]
[387468760,1758737442049,-480.0,0.00019622,2]
[387468762,1758737442059,-494.84984205,0.00019622,2]
[387468764,1758737442070,-480.0,0.00019622,2]
[387468766,1758737442079,-480.0,0.00019624,2]
[387468768,1758737442088,-534.76575564,0.00019726,2]
[387468770,1758737442097,-300.95501238,0.00019726,2]
[387468772,1758737442107,-480.0,0.00019726,2]
[387468774,1758737442115,-480.0,0.00019726,2]
[387468776,1758737442124,-377.87,0.00019726,2]
[387468778,1758737442133,-480.0,0.00019726,2]
[387468780,1758737442142,-480.0,0.00019726,2]
[387468782,1758737442152,-480.0,0.00019726,2]
[387468784,1758737442161,-480.0,0.00019726,2]
[387468786,1758737442170,-480.0,0.00019726,2]
[387468788,1758737442179,-480.0,0.00019726,2]
[387468790,1758737442189,-480.0,0.00019726,2]
[387468792,1758737442199,-608.16,0.00019726,2]
[387468794,1758737442209,-480.0,0.00019726,2]
[387468796,1758737442220,-437.41,0.00019798,2]
[387468798,1758737442229,-480.0,0.00019896,2]
[387468800,1758737442238,-319.93081962,0.00019896,2]
[387468802,1758737442247,-480.0,0.00019896,2]
[387468804,1758737442257,-480.0,0.00019896,2]
[387468806,1758737442266,-480.0,0.00019898,2]
[387468807,1758737442274,-1684.33605278,0.000199,2]
[387468809,1758737442284,-480.0,0.0002,2]
[387468811,1758737442293,-480.0,0.0002,2]
[387468813,1758737442303,-480.0,0.0002,2]
[387468815,1758737442312,-480.0,0.0002,2]
[387468817,1758737442322,-357.67686449,0.0002,2]
[387468819,1758737442331,-480.0,0.0002,2]
[387468821,1758737442340,-480.0,0.0002,2]
[387468824,1758737442350,-480.0,0.0002,2]
[387468826,1758737442359,-480.0,0.0002017,2]
[387468828,1758737442368,-480.0,0.0002017,2]
[387468830,1758737442377,-480.0,0.0002017,2]
[387468832,1758737442386,-480.0,0.00020172,2]
[387468834,1758737442396,-160.0,0.0002025,2]
[387468836,1758737442408,-480.0,0.00020273,2]
[387468838,1758737442417,-480.0,0.00020273,2]
[387468840,1758737442427,-198.98,0.00020273,2]
[387468842,1758737442436,-480.0,0.00020273,2]
[387468844,1758737442445,-480.0,0.00020273,2]
[387468846,1758737442455,-480.0,0.00020273,2]
[387468848,1758737442464,-532.94,0.00020273,2]
[387468850,1758737442473,-480.0,0.00020444,2]
[387468852,1758737442483,-480.0,0.00020444,2]
[387468854,1758737442492,-480.0,0.00020444,2]
[387468856,1758737442502,-480.0,0.00020446,2]
[387468858,1758737442511,-190.71,0.00020546,2]
[387468870,1758737442520,-480.0,0.00020547,2]
[387468872,1758737442620,-480.0,0.00020547,2]
[387468874,1758737442630,-480.0,0.00020547,2]
[387468876,1758737442640,-480.0,0.00020547,2]
[387468878,1758737442648,-480.0,0.00020547,2]
[387468880,1758737442658,-1570.0,0.00020708,3]
[387468882,1758737442667,-785.0,0.00020708,3]
[387468884,1758737442676,-392.5,0.00020708,3]
[387468886,1758737442686,-680.8583247,0.00020714,2]
[387468888,1758737442696,-480.0,0.00020718,2]
[387468891,1758737442705,-480.0,0.00020718,2]
[387468894,1758737442714,-480.0,0.00020718,2]
[387468896,1758737442724,-480.0,0.0002072,2]
[387468898,1758737442734,-260.0,0.00020798,2]
[387468901,1758737442743,-280.57325501,0.00020821,2]
[387468903,1758737442752,-480.0,0.00020821,2]
[387468905,1758737442761,-480.0,0.00020821,2]
[387468907,1758737442771,-480.0,0.00020821,2]
[387468909,1758737442780,-480.0,0.00020821,2]
[387468911,1758737442789,-1200.0,0.00020898,2]
[387468913,1758737442798,-420.0,0.00020898,2]
[387468915,1758737442808,-500.0,0.00020912,2]
[387468917,1758737442816,-1684.33605251,0.00020972,2]
[387468919,1758737442826,-480.0,0.00020992,2]
[387468921,1758737442835,-480.0,0.00020992,2]
[387468923,1758737442845,-480.0,0.00020992,2]
[387468925,1758737442854,-480.0,0.00020994,2]
[387468927,1758737442864,-988.0,0.00020999,2]
[387468929,1758737442873,-480.0,0.00021095,2]
[387468931,1758737442882,-480.0,0.00021095,2]
[387468933,1758737442891,-402.90798182,0.00021095,2]
[387468935,1758737442900,-480.0,0.00021095,2]
[387468937,1758737442910,-500.0,0.00021133,2]
[387468939,1758737442919,-500.0,0.00021133,2]
[387468941,1758737442927,-500.0,0.00021133,2]
[387468943,1758737442936,-166.86722905,0.00021266,2]
[387468945,1758737442946,-480.0,0.00021266,2]
[387468947,1758737442956,-480.0,0.00021266,2]
[387468949,1758737442965,-480.0,0.00021268,2]
[387468951,1758737442976,-360.0,0.00021346,2]
[387468953,1758737442985,-480.0,0.00021369,2]
[387468955,1758737442995,-480.0,0.00021369,2]
[387468957,1758737443006,-601.15,0.00021369,2]
[387468959,1758737443016,-527.39052683,0.0002146,2]
[387468961,1758737443027,-480.0,0.0002154,2]
[387468963,1758737443037,-480.0,0.0002154,2]
[387468965,1758737443048,-519.72,0.00021542,2]
[387468967,1758737443062,-480.0,0.00021643,2]
[387468970,1758737443073,-480.0,0.00021643,2]
[387468972,1758737443082,-1000.0,0.00021681,2]
[387468974,1758737443094,-501.11660757,0.00021681,2]
[387468976,1758737443104,-1000.0,0.00021681,2]
[387468978,1758737443114,-160.0,0.00021809,2]
[387468979,1758737443125,-160.0,0.00021809,2]
[387468981,1758737443135,-532.2324375,0.00021809,2]
[387468983,1758737443144,-480.0,0.00021814,2]
[387468985,1758737443154,-480.0,0.00021814,2]
[387468987,1758737443163,-460.0,0.00021894,2]
[387468989,1758737443173,-500.0,0.00021917,2]
[387468991,1758737443183,-500.0,0.00021917,2]
[387468993,1758737443193,-500.0,0.00021917,2]
[387468995,1758737443205,-407.85891231,0.00021917,2]
[387468997,1758737443220,-617.48941345,0.00021917,2]
[387468999,1758737443229,-480.0,0.00021917,2]
[387469000,1758737443239,-480.0,0.00021917,2]
[387469003,1758737443249,-480.0,0.00021917,2]
[387469004,1758737443258,-480.0,0.00021917,2]
[387469006,1758737443268,-480.0,0.00021917,2]
[387469008,1758737443277,-480.0,0.00021917,2]
[387469011,1758737443287,-480.0,0.00021917,2]
[387469012,1758737443296,-480.0,0.00021917,2]
[387469014,1758737443305,-480.0,0.00021917,2]
[387469016,1758737443317,-480.0,0.00021917,2]
[387469018,1758737443325,-480.0,0.00021917,2]
[387469020,1758737443334,-4886.98,0.00022,2]
[387469022,1758737443343,-1684.33605251,0.00022044,2]
[387469024,1758737443352,-480.0,0.00022088,2]
[387469026,1758737443361,-246.12764394,0.00022088,2]
[387469028,1758737443371,-215.42000619,0.00022088,2]
[387469030,1758737443380,-680.8583247,0.00022178,2]
[387469032,1758737443389,-480.0,0.00022191,2]
[387469034,1758737443399,-1500.0,0.00022229,2]
[387469037,1758737443408,-480.0,0.00022362,2]
[387469039,1758737443418,-381.41,0.00022413,2]
[387469041,1758737443427,-560.0,0.00022442,2]
[387469043,1758737443436,-480.0,0.00022465,2]
[387469045,1758737443445,-480.0,0.00022636,2]
[387469047,1758737443454,-480.0,0.00022739,2]
[387469049,1758737443464,-587.0,0.00022775,2]
[387469051,1758737443473,-480.0,0.0002291,2]
[387469053,1758737443482,-660.0,0.0002299,2]
[387469055,1758737443492,-480.0,0.00023013,2]
[387469057,1758737443501,-1684.33605251,0.00023116,2]
[387469059,1758737443511,-210.67,0.00023184,2]
[387469061,1758737443520,-151.0,0.000232,5]
[387469063,1758737443530,-480.0,0.00023287,2]
[387469065,1758737443539,-695.05,0.00023287,2]
[387469067,1758737443547,-480.0,0.00023561,2]
[387469069,1758737443559,-680.8583247,0.00023641,2]
[387469071,1758737443568,-151.0,0.000238,10]
[387469073,1758737443577,-480.0,0.00023835,2]
[387469075,1758737443587,-244.145,0.00024047,5]
[387469077,1758737443596,-4623.0,0.00024048,2]
[387469079,1758737443608,-480.0,0.00024109,2]
[387469081,1758737443617,-1684.33605251,0.00024187,2]
[387469083,1758737443626,-572.12,0.00024281,2]
[387469085,1758737443636,-151.0,0.000243,9]
[387469086,1758737443645,-480.0,0.00024383,2]
[387469088,1758737443654,-150.0,0.00024484,2]
[387469090,1758737443664,-978.0,0.00024484,2]
[387469092,1758737443673,-634.0,0.00024484,2]
[387469094,1758737443683,-2159.0,0.00024484,2]
[387469096,1758737443692,-4886.98,0.000245,2]
[387469098,1758737443702,-480.0,0.00024657,2]
[387469100,1758737443711,-56349.0199407,0.00024818,2]
[387469102,1758737443721,-823.0,0.0002482,2]
[387469104,1758737443731,-500.0,0.00024873,2]
[387469106,1758737443740,-500.0,0.00024873,2]
[387469108,1758737443750,-90651.8317716,0.000249,2]
[387469110,1758737443761,-480.0,0.00024931,2]
[387469112,1758737443770,-680.8583247,0.00025105,2]
[387469114,1758737443780,-336.23878595,0.00025205,2]
[387469116,1758737443789,-695.05,0.00025205,4]
[387469118,1758737443798,-1684.33605251,0.00025259,3]
[387469120,1758737443809,-906.28539915,0.00025421,2]
[387469122,1758737443817,-762.82,0.00026149,2]
[387469125,1758737443831,-1684.33605251,0.00026331,5]
[387469127,1758737443843,-500.0,0.00026349,2]
[387469129,1758737443855,-1152.0,0.00027049,2]
[387469132,1758737443867,-695.05,0.00027123,6]
[387469134,1758737443880,-150.0,0.00027397,5]
[387469136,1758737443891,-1684.33605251,0.00027403,7]
[387469138,1758737443901,-250.0,0.00027945,5]
[387469140,1758737443911,-953.53,0.00028017,2]
[387469143,1758737443923,-272.59,0.00028219,14]
[387469145,1758737443935,-151.0,0.000283,18]
[387469147,1758737443945,-1684.33605251,0.00028475,9]
[387469149,1758737443956,-6475.13084083,0.0002849,2]
[387469151,1758737443968,-350.0,0.00028493,5]
[387469153,1758737443979,-4886.98,0.000285,2]
[387469156,1758737443989,-500.0,0.00028541,7]
[387469158,1758737444001,-158.6050438,0.0002863,30]
[387469160,1758737444011,-390.3504546,0.00028661,30]
[387469162,1758737444021,-390.3504546,0.00028661,30]
[387469164,1758737444033,-390.3504546,0.00028661,30]
[387469167,1758737444045,-272.59,0.00028904,15]
[387469169,1758737444055,-695.05,0.00029041,8]
[387469171,1758737444069,-450.0,0.00029041,5]
[387469173,1758737444080,-151.0,0.00029138,2]
[387469176,1758737444092,-151.0,0.00029138,2]
[387469178,1758737444103,-151.0,0.00029138,2]
[387469180,1758737444114,-151.0,0.00029138,2]
[387469182,1758737444126,-200.0,0.0002919,3]
[387469185,1758737444137,-2000.0,0.000292,2]
[387469187,1758737444147,-3173.41029582,0.00029242,2]
[387469189,1758737444158,-151.0,0.00029324,7]
[387469191,1758737444170,-151.0,0.00029324,7]
[387469193,1758737444183,-190.0,0.00029324,7]
[387469196,1758737444195,-176.261188,0.00029324,7]
[387469198,1758737444210,-163.284195,0.00029326,7]
[387469200,1758737444220,-151.0,0.00029326,7]
[387469202,1758737444231,-151.0,0.00029326,7]
[387469204,1758737444241,-282.067784,0.00029326,7]
[387469206,1758737444251,-151.0,0.00029327,7]
[387469208,1758737444261,-151.0,0.00029327,7]
[387469211,1758737444272,-151.0,0.00029327,7]
[387469213,1758737444284,-151.0,0.00029327,7]
[387469215,1758737444295,-151.0,0.00029327,7]
[387469217,1758737444306,-151.0,0.00029327,7]
[387469219,1758737444318,-151.0,0.00029327,7]
[387469222,1758737444329,-151.0,0.00029327,7]
[387469224,1758737444340,-151.0,0.00029327,7]
[387469226,1758737444351,-151.0,0.00029327,7]
[387469228,1758737444362,-151.0,0.00029327,7]
[387469230,1758737444374,-151.0,0.00029327,7]
[387469233,1758737444386,-151.0,0.00029327,7]
[387469235,1758737444397,-151.0,0.00029327,7]
[387469237,1758737444408,-151.0,0.00029327,7]
[387469239,1758737444420,-151.0,0.00029342,7]
[387469241,1758737444431,-151.0,0.00029342,7]
[387469244,1758737444442,-151.0,0.00029342,7]
[387469246,1758737444455,-151.0,0.00029342,7]
[387469248,1758737444464,-288.459583,0.00029342,7]
[387469250,1758737444474,-151.0,0.00029342,7]
[387469252,1758737444484,-155.86,0.00029342,7]
[387469254,1758737444494,-155.86,0.00029342,7]
[387469256,1758737444503,-155.86,0.00029342,7]
[387469258,1758737444513,-155.86,0.00029342,7]
[387469261,1758737444524,-397851.53184433,0.00029342,20]
[387469303,1758737444923,-646.41535411,0.00019177,2]
[387469305,1758737444934,-646.41535411,0.00019177,2]
[387469307,1758737444944,-646.41535411,0.00019177,2]
[387469309,1758737444955,-646.41535411,0.00019177,2]
[387469311,1758737444965,-58936.99209478,0.00019352,2]